[Event "Titled Tuesday Blitz February 07 Early 2023"]
[White "Smietanska, Wiktoria"]
[Black "Nikologorsky, Matfei"]
[WhiteFideId "21869359"]
[BlackFideId "24102474"]
[WhiteElo "1936"]
[BlackElo "2182"]
[Result "1/2-1/2"]
[Round "08"]
[TimeControl "180+2"]
[Date "2023.02.07"]
[WhiteClock "0:00:03"]
[BlackClock "0:00:43"]

1. c4 {[%clk 0:03:00]}  e5 {[%clk 0:02:57]} 2. Nc3 {[%clk 0:03:00]}  Nf6 {[%clk 0:02:57]} 3. Nf3 {[%clk 0:03:01]}  Nc6 {[%clk 0:02:57]} 4. e4 {[%clk 0:03:01]}  Bc5 {[%clk 0:02:56]} 5. Nxe5 {[%clk 0:03:01]}  Nxe5 {[%clk 0:02:52]} 6. d4 {[%clk 0:03:01]}  Bd6 {[%clk 0:02:51]} 7. c5 {[%clk 0:03:00]}  Bxc5 {[%clk 0:02:44]} 8. dxc5 {[%clk 0:02:57]}  O-O {[%clk 0:02:42]} 9. f4 {[%clk 0:02:52]}  Nc6 {[%clk 0:02:41]} 10. e5 {[%clk 0:02:47]}  Ne8 {[%clk 0:02:37]} 11. Bd3 {[%clk 0:02:32]}  d6 {[%clk 0:02:36]} 12. cxd6 {[%clk 0:02:13]}  cxd6 {[%clk 0:02:35]} 13. exd6 {[%clk 0:01:58]}  Nxd6 {[%clk 0:02:21]} 14. O-O {[%clk 0:01:55]}  Bf5 {[%clk 0:02:21]} 15. Be3 {[%clk 0:01:40]}  Re8 {[%clk 0:02:14]} 16. Bf2 {[%clk 0:01:29]}  Bxd3 {[%clk 0:01:57]} 17. Qxd3 {[%clk 0:01:28]}  Ne4 {[%clk 0:01:53]} 18. Qxd8 {[%clk 0:01:14]}  Raxd8 {[%clk 0:01:54]} 19. Nxe4 {[%clk 0:01:10]}  Rxe4 {[%clk 0:01:55]} 20. Rfd1 {[%clk 0:00:51]}  Rxd1+ {[%clk 0:01:41]} 21. Rxd1 {[%clk 0:00:49]}  Rxf4 {[%clk 0:01:38]} 22. Rd7 {[%clk 0:00:43]}  Rb4 {[%clk 0:01:30]} 23. b3 {[%clk 0:00:41]}  a5 {[%clk 0:01:26]} 24. Kf1 {[%clk 0:00:18]}  h6 {[%clk 0:01:25]} 25. Ke2 {[%clk 0:00:17]}  Rb5 {[%clk 0:01:17]} 26. Kd2 {[%clk 0:00:14]}  Nb4 {[%clk 0:01:10]} 27. a4 {[%clk 0:00:09]}  Rd5+ {[%clk 0:01:09]} 28. Rxd5 {[%clk 0:00:08]}  Nxd5 {[%clk 0:01:10]} 29. g3 {[%clk 0:00:04]}  Kf8 {[%clk 0:01:09]} 30. Bc5+ {[%clk 0:00:03]}  Ke8 {[%clk 0:01:09]} 31. Kd3 {[%clk 0:00:04]}  Kd7 {[%clk 0:01:10]} 32. Kd4 {[%clk 0:00:03]}  Kc6 {[%clk 0:01:10]} 33. Bf8 {[%clk 0:00:02]}  g6 {[%clk 0:01:02]} 34. Bxh6 {[%clk 0:00:02]}  Ne7 {[%clk 0:00:59]} 35. Bd2 {[%clk 0:00:02]}  b6 {[%clk 0:00:58]} 36. g4 {[%clk 0:00:02]}  f5 {[%clk 0:00:57]} 37. gxf5 {[%clk 0:00:02]}  Nxf5+ {[%clk 0:00:56]} 38. Ke5 {[%clk 0:00:03]}  Nh4 {[%clk 0:00:57]} 39. Kf6 {[%clk 0:00:02]}  Nf3 {[%clk 0:00:57]} 40. Bf4 {[%clk 0:00:03]}  Nd4 {[%clk 0:00:56]} 41. Kxg6 {[%clk 0:00:02]}  Nxb3 {[%clk 0:00:57]} 42. h4 {[%clk 0:00:03]}  Nc5 {[%clk 0:00:52]} 43. h5 {[%clk 0:00:03]}  Ne6 {[%clk 0:00:49]} 44. Be5 {[%clk 0:00:03]}  Kd5 {[%clk 0:00:48]} 45. Bf6 {[%clk 0:00:03]}  Nf4+ {[%clk 0:00:47]} 46. Kg5 {[%clk 0:00:03]}  Nxh5 {[%clk 0:00:47]} 47. Kxh5 {[%clk 0:00:03]}  Kc4 {[%clk 0:00:48]} 48. Bd8 {[%clk 0:00:03]}  b5 {[%clk 0:00:44]} 49. axb5 {[%clk 0:00:03]}  Kxb5 {[%clk 0:00:43]} 50. Bxa5 {[%clk 0:00:03]} 1/2-1/2


[Site "https://www.chess.com"]

[Event "Titled Tuesday Blitz February 07 Early 2023"]
[White "Vaglio Munoz, Jaime"]
[Black "Szyszylo, Rafal"]
[WhiteFideId "6500145"]
[BlackFideId "1109626"]
[WhiteElo "2174"]
[BlackElo "2091"]
[Result "1-0"]
[Round "08"]
[TimeControl "180+2"]
[Date "2023.02.07"]
[WhiteClock "0:00:33"]
[BlackClock "0:00:02"]

1. d4 {[%clk 0:02:56]}  g6 {[%clk 0:03:00]} 2. e4 {[%clk 0:02:54]}  d6 {[%clk 0:02:58]} 3. f4 {[%clk 0:02:53]}  Nf6 {[%clk 0:02:57]} 4. e5 {[%clk 0:02:52]}  dxe5 {[%clk 0:02:55]} 5. fxe5 {[%clk 0:02:52]}  Nd5 {[%clk 0:02:54]} 6. c4 {[%clk 0:02:51]}  Nb6 {[%clk 0:02:54]} 7. Nc3 {[%clk 0:02:48]}  Bg7 {[%clk 0:02:53]} 8. Be3 {[%clk 0:02:43]}  Nc6 {[%clk 0:02:36]} 9. h3 {[%clk 0:02:21]}  O-O {[%clk 0:02:28]} 10. Nf3 {[%clk 0:02:21]}  f6 {[%clk 0:02:24]} 11. exf6 {[%clk 0:02:17]}  exf6 {[%clk 0:02:23]} 12. d5 {[%clk 0:02:15]}  Re8 {[%clk 0:02:21]} 13. Kf2 {[%clk 0:02:13]}  Ne7 {[%clk 0:01:59]} 14. Be2 {[%clk 0:02:06]}  Nf5 {[%clk 0:01:59]} 15. Bc5 {[%clk 0:02:03]}  Nd7 {[%clk 0:01:52]} 16. Ba3 {[%clk 0:02:00]}  Ne3 {[%clk 0:01:27]} 17. Qb3 {[%clk 0:01:56]}  Kh8 {[%clk 0:01:19]} 18. Rhe1 {[%clk 0:01:54]}  Nb6 {[%clk 0:01:14]} 19. Bd3 {[%clk 0:01:37]}  Nf5 {[%clk 0:01:04]} 20. g4 {[%clk 0:01:29]}  Ne7 {[%clk 0:00:52]} 21. Re2 {[%clk 0:01:24]}  Ng8 {[%clk 0:00:46]} 22. Rae1 {[%clk 0:01:21]}  Rxe2+ {[%clk 0:00:46]} 23. Rxe2 {[%clk 0:01:22]}  Bd7 {[%clk 0:00:47]} 24. c5 {[%clk 0:01:22]}  Nc8 {[%clk 0:00:46]} 25. g5 {[%clk 0:01:15]}  fxg5 {[%clk 0:00:44]} 26. Ne4 {[%clk 0:01:10]}  h6 {[%clk 0:00:39]} 27. Ng3 {[%clk 0:01:08]}  Nce7 {[%clk 0:00:31]} 28. d6 {[%clk 0:01:07]}  cxd6 {[%clk 0:00:31]} 29. cxd6 {[%clk 0:01:06]}  Nf5 {[%clk 0:00:29]} 30. Nxf5 {[%clk 0:01:01]}  Bxf5 {[%clk 0:00:27]} 31. Bc4 {[%clk 0:00:55]}  Nf6 {[%clk 0:00:21]} 32. Re7 {[%clk 0:00:51]}  Ne4+ {[%clk 0:00:21]} 33. Kg2 {[%clk 0:00:51]}  Qb6 {[%clk 0:00:20]} 34. Qc2 {[%clk 0:00:41]}  Nxd6 {[%clk 0:00:17]} 35. Qe2 {[%clk 0:00:39]}  Nxc4 {[%clk 0:00:16]} 36. Qxc4 {[%clk 0:00:39]}  Rc8 {[%clk 0:00:14]} 37. Qf7 {[%clk 0:00:34]}  Rc2+ {[%clk 0:00:14]} 38. Kg3 {[%clk 0:00:34]}  Qf6 {[%clk 0:00:04]} 39. Re8+ {[%clk 0:00:33]}  Kh7 {[%clk 0:00:02]} 40. Qg8# {[%clk 0:00:33]} 1-0


[Site "https://www.chess.com"]

[Event "Titled Tuesday Blitz February 07 Early 2023"]
[White "Carrasco Miranda, Andres"]
[Black "Ciuffoletti, Paolo"]
[WhiteFideId "3405990"]
[BlackFideId "807630"]
[WhiteElo "2240"]
[BlackElo "2106"]
[Result "1/2-1/2"]
[Round "08"]
[TimeControl "180+2"]
[Date "2023.02.07"]
[WhiteClock "0:01:02"]
[BlackClock "0:00:12"]

1. d4 {[%clk 0:03:00]}  d5 {[%clk 0:02:58]} 2. c4 {[%clk 0:03:00]}  c6 {[%clk 0:02:59]} 3. Nf3 {[%clk 0:03:01]}  Nf6 {[%clk 0:02:59]} 4. e3 {[%clk 0:03:01]}  Bf5 {[%clk 0:02:56]} 5. Nc3 {[%clk 0:03:00]}  e6 {[%clk 0:02:55]} 6. Nh4 {[%clk 0:03:00]}  Be4 {[%clk 0:02:55]} 7. f3 {[%clk 0:03:00]}  Bg6 {[%clk 0:02:55]} 8. Qb3 {[%clk 0:03:01]}  Qb6 {[%clk 0:02:53]} 9. Nxg6 {[%clk 0:03:01]}  hxg6 {[%clk 0:02:52]} 10. Bd2 {[%clk 0:03:01]}  Nbd7 {[%clk 0:02:52]} 11. cxd5 {[%clk 0:03:00]}  exd5 {[%clk 0:02:49]} 12. O-O-O {[%clk 0:03:01]}  Bd6 {[%clk 0:02:48]} 13. h3 {[%clk 0:02:56]}  O-O {[%clk 0:02:45]} 14. Kb1 {[%clk 0:02:54]}  a5 {[%clk 0:02:37]} 15. Qxb6 {[%clk 0:02:50]}  Nxb6 {[%clk 0:02:36]} 16. e4 {[%clk 0:02:51]}  dxe4 {[%clk 0:02:17]} 17. fxe4 {[%clk 0:02:52]}  Bb4 {[%clk 0:02:16]} 18. e5 {[%clk 0:02:42]}  Bxc3 {[%clk 0:02:06]} 19. bxc3 {[%clk 0:02:43]}  Ne4 {[%clk 0:01:40]} 20. Be1 {[%clk 0:02:42]}  Nd5 {[%clk 0:01:40]} 21. Kb2 {[%clk 0:02:30]}  b5 {[%clk 0:01:19]} 22. Bd3 {[%clk 0:02:29]}  Ng5 {[%clk 0:01:18]} 23. h4 {[%clk 0:02:23]}  Ne6 {[%clk 0:01:17]} 24. h5 {[%clk 0:02:23]}  gxh5 {[%clk 0:01:08]} 25. Rxh5 {[%clk 0:02:20]}  Nef4 {[%clk 0:01:08]} 26. Bh7+ {[%clk 0:02:17]}  Kh8 {[%clk 0:01:06]} 27. Rh4 {[%clk 0:02:16]}  g5 {[%clk 0:01:04]} 28. Rh1 {[%clk 0:02:10]}  Kg7 {[%clk 0:01:04]} 29. g3 {[%clk 0:01:48]}  Ng6 {[%clk 0:00:56]} 30. Bd2 {[%clk 0:01:42]}  Rh8 {[%clk 0:00:48]} 31. Bxg6 {[%clk 0:01:37]}  Kxg6 {[%clk 0:00:48]} 32. a4 {[%clk 0:01:31]}  Rab8 {[%clk 0:00:39]} 33. Ka3 {[%clk 0:01:26]}  Rxh1 {[%clk 0:00:32]} 34. Rxh1 {[%clk 0:01:25]}  b4+ {[%clk 0:00:33]} 35. cxb4 {[%clk 0:01:25]}  Nxb4 {[%clk 0:00:32]} 36. Rf1 {[%clk 0:01:15]}  Nc2+ {[%clk 0:00:28]} 37. Ka2 {[%clk 0:01:15]}  Nxd4 {[%clk 0:00:28]} 38. Rf6+ {[%clk 0:01:15]}  Kg7 {[%clk 0:00:26]} 39. Bxg5 {[%clk 0:01:11]}  Rb4 {[%clk 0:00:19]} 40. Rd6 {[%clk 0:01:04]}  Rxa4+ {[%clk 0:00:17]} 41. Kb2 {[%clk 0:01:05]}  Ne6 {[%clk 0:00:16]} 42. Bf6+ {[%clk 0:01:04]}  Kg6 {[%clk 0:00:16]} 43. Rxc6 {[%clk 0:01:04]}  Rg4 {[%clk 0:00:15]} 44. Ra6 {[%clk 0:01:03]}  Rxg3 {[%clk 0:00:15]} 45. Rxa5 {[%clk 0:01:03]}  Kf5 {[%clk 0:00:14]} 46. Ra7 {[%clk 0:01:02]}  Kg6 {[%clk 0:00:13]} 47. Ra8 {[%clk 0:01:03]}  Kf5 {[%clk 0:00:12]} 48. Ra7 {[%clk 0:01:01]}  Kg6 {[%clk 0:00:12]} 49. Ra8 {[%clk 0:01:02]}  Kf5 {[%clk 0:00:12]} 50. Ra7 {[%clk 0:01:02]} 1/2-1/2


[Site "https://www.chess.com"]

[Event "Titled Tuesday Blitz February 07 Early 2023"]
[White "Chakravarthi Reddy, M"]
[Black "Ardila, Oscar Humberto"]
[WhiteFideId "25009532"]
[BlackFideId "4404742"]
[WhiteElo "2279"]
[BlackElo "1982"]
[Result "1-0"]
[Round "08"]
[TimeControl "180+2"]
[Date "2023.02.07"]
[WhiteClock "0:00:33"]
[BlackClock "0:00:05"]

1. c4 {[%clk 0:03:00]}  Nf6 {[%clk 0:02:58]} 2. Nc3 {[%clk 0:03:00]}  g6 {[%clk 0:02:58]} 3. d4 {[%clk 0:02:59]}  Bg7 {[%clk 0:02:58]} 4. e4 {[%clk 0:03:00]}  d6 {[%clk 0:02:59]} 5. Nf3 {[%clk 0:03:00]}  Nbd7 {[%clk 0:02:59]} 6. Be2 {[%clk 0:03:01]}  O-O {[%clk 0:02:59]} 7. O-O {[%clk 0:03:01]}  e5 {[%clk 0:02:59]} 8. d5 {[%clk 0:02:56]}  Nc5 {[%clk 0:02:59]} 9. Bd3 {[%clk 0:02:54]}  a5 {[%clk 0:02:58]} 10. Be3 {[%clk 0:02:44]}  Nxd3 {[%clk 0:02:58]} 11. Qxd3 {[%clk 0:02:44]}  Nh5 {[%clk 0:02:57]} 12. a3 {[%clk 0:02:39]}  f5 {[%clk 0:02:56]} 13. b4 {[%clk 0:02:38]}  fxe4 {[%clk 0:02:53]} 14. Nxe4 {[%clk 0:02:36]}  Nf4 {[%clk 0:02:50]} 15. Bxf4 {[%clk 0:02:25]}  Rxf4 {[%clk 0:02:49]} 16. Nfd2 {[%clk 0:02:25]}  Qe7 {[%clk 0:02:41]} 17. c5 {[%clk 0:02:18]}  b6 {[%clk 0:02:39]} 18. cxd6 {[%clk 0:02:15]}  cxd6 {[%clk 0:02:36]} 19. Rac1 {[%clk 0:02:14]}  Ba6 {[%clk 0:02:32]} 20. b5 {[%clk 0:02:14]}  Bb7 {[%clk 0:02:32]} 21. Nc4 {[%clk 0:02:13]}  Rd8 {[%clk 0:02:17]} 22. Nxb6 {[%clk 0:02:08]}  Qf7 {[%clk 0:02:06]} 23. Nc4 {[%clk 0:02:06]}  Qxd5 {[%clk 0:02:04]} 24. Qxd5+ {[%clk 0:01:57]}  Bxd5 {[%clk 0:02:04]} 25. Nexd6 {[%clk 0:01:57]}  Bf8 {[%clk 0:02:00]} 26. Rfd1 {[%clk 0:01:23]}  Bxc4 {[%clk 0:01:40]} 27. g3 {[%clk 0:01:23]}  Rg4 {[%clk 0:00:56]} 28. h3 {[%clk 0:01:04]}  Bb3 {[%clk 0:00:40]} 29. Rd3 {[%clk 0:01:00]}  Rd4 {[%clk 0:00:36]} 30. Rxb3 {[%clk 0:00:59]}  Bxd6 {[%clk 0:00:35]} 31. b6 {[%clk 0:00:56]}  Bb8 {[%clk 0:00:35]} 32. Rb5 {[%clk 0:00:53]}  R4d5 {[%clk 0:00:34]} 33. Rxd5 {[%clk 0:00:51]}  Rxd5 {[%clk 0:00:35]} 34. Rc8+ {[%clk 0:00:51]}  Kf7 {[%clk 0:00:35]} 35. Rxb8 {[%clk 0:00:52]}  Rb5 {[%clk 0:00:35]} 36. b7 {[%clk 0:00:40]}  Kg7 {[%clk 0:00:29]} 37. h4 {[%clk 0:00:37]}  a4 {[%clk 0:00:28]} 38. h5 {[%clk 0:00:33]}  gxh5 {[%clk 0:00:27]} 39. f4 {[%clk 0:00:33]}  exf4 {[%clk 0:00:26]} 40. gxf4 {[%clk 0:00:34]}  Rb3 {[%clk 0:00:26]} 41. f5 {[%clk 0:00:33]}  h4 {[%clk 0:00:26]} 42. f6+ {[%clk 0:00:33]}  Kf7 {[%clk 0:00:26]} 43. Rh8 {[%clk 0:00:32]}  Rxb7 {[%clk 0:00:04]} 44. Rxh7+ {[%clk 0:00:32]}  Kxf6 {[%clk 0:00:05]} 45. Rxb7 {[%clk 0:00:33]} 1-0


[Site "https://www.chess.com"]

[Event "Titled Tuesday Blitz February 07 Early 2023"]
[White "Vifleemskaia, Svetlana"]
[Black "Clawitter, Craig"]
[WhiteFideId "4129490"]
[BlackFideId "2023105"]
[WhiteElo "1971"]
[BlackElo "2050"]
[Result "1-0"]
[Round "08"]
[TimeControl "180+2"]
[Date "2023.02.07"]
[WhiteClock "0:00:10"]
[BlackClock "0:00:02"]

1. d4 {[%clk 0:02:51]}  e6 {[%clk 0:03:00]} 2. c4 {[%clk 0:02:51]}  Nf6 {[%clk 0:03:00]} 3. Nc3 {[%clk 0:02:50]}  d5 {[%clk 0:03:00]} 4. cxd5 {[%clk 0:02:50]}  exd5 {[%clk 0:03:01]} 5. Bg5 {[%clk 0:02:50]}  c6 {[%clk 0:03:02]} 6. e3 {[%clk 0:02:51]}  Be7 {[%clk 0:03:01]} 7. Bd3 {[%clk 0:02:51]}  O-O {[%clk 0:03:01]} 8. Qc2 {[%clk 0:02:50]}  Nbd7 {[%clk 0:03:02]} 9. Nge2 {[%clk 0:02:49]}  Re8 {[%clk 0:03:02]} 10. O-O {[%clk 0:02:49]}  Nf8 {[%clk 0:03:03]} 11. f3 {[%clk 0:02:47]}  g6 {[%clk 0:03:03]} 12. Bh4 {[%clk 0:02:47]}  Ne6 {[%clk 0:03:00]} 13. Kh1 {[%clk 0:02:43]}  b5 {[%clk 0:02:56]} 14. a3 {[%clk 0:02:43]}  a5 {[%clk 0:02:56]} 15. Bf2 {[%clk 0:02:39]}  Bb7 {[%clk 0:02:45]} 16. e4 {[%clk 0:02:39]}  b4 {[%clk 0:02:36]} 17. Na4 {[%clk 0:02:34]}  Rc8 {[%clk 0:02:12]} 18. e5 {[%clk 0:02:25]}  Nd7 {[%clk 0:02:11]} 19. f4 {[%clk 0:02:25]}  c5 {[%clk 0:02:09]} 20. Bb5 {[%clk 0:02:18]}  Nxd4 {[%clk 0:01:45]} 21. Nxd4 {[%clk 0:02:02]}  cxd4 {[%clk 0:01:46]} 22. Qd3 {[%clk 0:02:00]}  bxa3 {[%clk 0:01:29]} 23. bxa3 {[%clk 0:01:54]}  Bc6 {[%clk 0:01:29]} 24. Bxd4 {[%clk 0:01:36]}  Bxb5 {[%clk 0:01:17]} 25. Qxb5 {[%clk 0:01:37]}  Rc4 {[%clk 0:01:17]} 26. Qxd5 {[%clk 0:01:15]}  Rxa4 {[%clk 0:01:15]} 27. e6 {[%clk 0:01:14]}  Nf6 {[%clk 0:00:54]} 28. exf7+ {[%clk 0:01:13]}  Kf8 {[%clk 0:00:55]} 29. fxe8=Q+ {[%clk 0:01:12]}  Kxe8 {[%clk 0:00:42]} 30. Qc6+ {[%clk 0:00:54]}  Qd7 {[%clk 0:00:42]} 31. Qxd7+ {[%clk 0:00:49]}  Kxd7 {[%clk 0:00:43]} 32. Be5 {[%clk 0:00:48]}  Nd5 {[%clk 0:00:32]} 33. Rad1 {[%clk 0:00:36]}  Ke6 {[%clk 0:00:29]} 34. Rfe1 {[%clk 0:00:34]}  Nf6 {[%clk 0:00:12]} 35. Bb2+ {[%clk 0:00:23]}  Re4 {[%clk 0:00:11]} 36. Rxe4+ {[%clk 0:00:22]}  Nxe4 {[%clk 0:00:12]} 37. Kg1 {[%clk 0:00:21]}  Bc5+ {[%clk 0:00:09]} 38. Kf1 {[%clk 0:00:12]}  Kf5 {[%clk 0:00:05]} 39. g3 {[%clk 0:00:11]}  h5 {[%clk 0:00:05]} 40. Ke2 {[%clk 0:00:10]}  h4 {[%clk 0:00:04]} 41. Kf3 {[%clk 0:00:10]}  hxg3 {[%clk 0:00:05]} 42. hxg3 {[%clk 0:00:10]}  Be7 {[%clk 0:00:02]} 43. Rd5+ {[%clk 0:00:10]}  Ke6 {[%clk 0:00:02]} 44. Kxe4 {[%clk 0:00:10]} 1-0


[Site "https://www.chess.com"]

[Event "Titled Tuesday Blitz February 07 Early 2023"]
[White "Bongo Akanga Ndjila, Barthelemy"]
[Black "Jenkins, Drake"]
[WhiteFideId "10609431"]
[BlackFideId "2022397"]
[WhiteElo "1824"]
[BlackElo "2130"]
[Result "0-1"]
[Round "08"]
[TimeControl "180+2"]
[Date "2023.02.07"]
[WhiteClock "0:02:13"]
[BlackClock "0:02:06"]

1. d4 {[%clk 0:02:59]}  Nf6 {[%clk 0:02:59]} 2. Nf3 {[%clk 0:02:56]}  c5 {[%clk 0:02:59]} 3. d5 {[%clk 0:02:55]}  b5 {[%clk 0:02:58]} 4. c4 {[%clk 0:02:53]}  b4 {[%clk 0:02:58]} 5. a3 {[%clk 0:02:48]}  a5 {[%clk 0:02:52]} 6. axb4 {[%clk 0:02:41]}  cxb4 {[%clk 0:02:53]} 7. Nbd2 {[%clk 0:02:37]}  g6 {[%clk 0:02:51]} 8. e4 {[%clk 0:02:36]}  d6 {[%clk 0:02:51]} 9. Nb3 {[%clk 0:02:34]}  Nbd7 {[%clk 0:02:48]} 10. Bd3 {[%clk 0:02:32]}  Bg7 {[%clk 0:02:48]} 11. O-O {[%clk 0:02:32]}  O-O {[%clk 0:02:48]} 12. Qe2 {[%clk 0:02:28]}  a4 {[%clk 0:02:45]} 13. Nbd4 {[%clk 0:02:26]}  Nc5 {[%clk 0:02:39]} 14. e5 {[%clk 0:02:23]}  Ng4 {[%clk 0:02:22]} 15. exd6 {[%clk 0:02:13]}  exd6 {[%clk 0:02:07]} 16. Qe3 {[%clk 0:02:13]}  Nxe3 {[%clk 0:02:06]} 0-1


[Site "https://www.chess.com"]

[Event "Titled Tuesday Blitz February 07 Early 2023"]
[White "Osiecki, Stanislaw"]
[Black "Wilson, Elvin"]
[WhiteFideId "1102990"]
[BlackFideId "2014874"]
[WhiteElo "2055"]
[BlackElo "2183"]
[Result "0-1"]
[Round "08"]
[TimeControl "180+2"]
[Date "2023.02.07"]
[WhiteClock "0:00:01"]
[BlackClock "0:00:07"]

1. e4 {[%clk 0:02:48]}  e6 {[%clk 0:02:59]} 2. d4 {[%clk 0:02:47]}  d5 {[%clk 0:02:59]} 3. e5 {[%clk 0:02:48]}  c5 {[%clk 0:02:59]} 4. c3 {[%clk 0:02:49]}  Nc6 {[%clk 0:02:58]} 5. Nf3 {[%clk 0:02:49]}  Qb6 {[%clk 0:02:58]} 6. Bd3 {[%clk 0:02:49]}  cxd4 {[%clk 0:02:58]} 7. cxd4 {[%clk 0:02:49]}  Bd7 {[%clk 0:02:56]} 8. Be2 {[%clk 0:02:49]}  Nge7 {[%clk 0:02:52]} 9. Nc3 {[%clk 0:02:48]}  Nf5 {[%clk 0:02:52]} 10. Na4 {[%clk 0:02:47]}  Bb4+ {[%clk 0:02:47]} 11. Kf1 {[%clk 0:02:46]}  Qd8 {[%clk 0:02:44]} 12. a3 {[%clk 0:02:45]}  Be7 {[%clk 0:02:44]} 13. b4 {[%clk 0:02:41]}  Ncxd4 {[%clk 0:02:29]} 14. Nxd4 {[%clk 0:02:41]}  Nxd4 {[%clk 0:02:29]} 15. Qxd4 {[%clk 0:02:40]}  Bxa4 {[%clk 0:02:30]} 16. Qg4 {[%clk 0:02:38]}  g6 {[%clk 0:02:13]} 17. Bh6 {[%clk 0:02:37]}  Qb6 {[%clk 0:01:59]} 18. Rc1 {[%clk 0:02:20]}  Bb5 {[%clk 0:01:56]} 19. h4 {[%clk 0:02:16]}  Bxe2+ {[%clk 0:01:33]} 20. Qxe2 {[%clk 0:02:14]}  Kd7 {[%clk 0:01:03]} 21. Qf3 {[%clk 0:02:06]}  Rhc8 {[%clk 0:00:55]} 22. Rxc8 {[%clk 0:01:45]}  Rxc8 {[%clk 0:00:54]} 23. g3 {[%clk 0:01:46]}  Ke8 {[%clk 0:00:50]} 24. Kg2 {[%clk 0:01:41]}  Qc6 {[%clk 0:00:44]} 25. Rc1 {[%clk 0:01:30]}  Qd7 {[%clk 0:00:44]} 26. Qe3 {[%clk 0:01:25]}  Rxc1 {[%clk 0:00:41]} 27. Qxc1 {[%clk 0:01:25]}  Qc6 {[%clk 0:00:41]} 28. Qf4 {[%clk 0:01:15]}  Qc4 {[%clk 0:00:38]} 29. Qd2 {[%clk 0:01:03]}  Qe4+ {[%clk 0:00:35]} 30. Kh2 {[%clk 0:01:03]}  Qxe5 {[%clk 0:00:34]} 31. Qc2 {[%clk 0:00:54]}  Kd7 {[%clk 0:00:28]} 32. Qa4+ {[%clk 0:00:53]}  Kc8 {[%clk 0:00:24]} 33. Qxa7 {[%clk 0:00:52]}  Qb8 {[%clk 0:00:17]} 34. Qa4 {[%clk 0:00:51]}  Kd8 {[%clk 0:00:15]} 35. Qb3 {[%clk 0:00:24]}  Qc7 {[%clk 0:00:14]} 36. Qb2 {[%clk 0:00:23]}  e5 {[%clk 0:00:12]} 37. a4 {[%clk 0:00:20]}  f6 {[%clk 0:00:11]} 38. b5 {[%clk 0:00:16]}  Qc5 {[%clk 0:00:10]} 39. a5 {[%clk 0:00:12]}  Qb4 {[%clk 0:00:10]} 40. Qa2 {[%clk 0:00:03]}  Qxb5 {[%clk 0:00:09]} 41. Be3 {[%clk 0:00:02]}  Kd7 {[%clk 0:00:07]} 42. Bb6 {[%clk 0:00:02]}  Bd6 {[%clk 0:00:07]} 43. Kh3 {[%clk 0:00:01]}  Ke6 {[%clk 0:00:07]} 0-1


[Site "https://www.chess.com"]

[Event "Titled Tuesday Blitz February 07 Early 2023"]
[White "Bashirli, Saadat"]
[Black "Sabar, Ethmane Daouda"]
[WhiteFideId "13429990"]
[BlackFideId "19600097"]
[WhiteElo "1571"]
[BlackElo "2040"]
[Result "1-0"]
[Round "08"]
[TimeControl "180+2"]
[Date "2023.02.07"]
[WhiteClock "0:00:17"]
[BlackClock "0:00:04"]

1. e4 {[%clk 0:03:00]}  e5 {[%clk 0:02:54]} 2. Nf3 {[%clk 0:03:01]}  Nc6 {[%clk 0:02:53]} 3. Bc4 {[%clk 0:03:01]}  Nf6 {[%clk 0:02:52]} 4. d3 {[%clk 0:03:01]}  d5 {[%clk 0:02:51]} 5. exd5 {[%clk 0:03:00]}  Nxd5 {[%clk 0:02:52]} 6. O-O {[%clk 0:03:01]}  Bc5 {[%clk 0:02:52]} 7. Re1 {[%clk 0:03:01]}  O-O {[%clk 0:02:52]} 8. Be3 {[%clk 0:02:44]}  Nxe3 {[%clk 0:02:49]} 9. fxe3 {[%clk 0:02:44]}  Bg4 {[%clk 0:02:41]} 10. Nc3 {[%clk 0:02:43]}  a6 {[%clk 0:02:16]} 11. Ne4 {[%clk 0:02:36]}  Be7 {[%clk 0:02:14]} 12. Nf2 {[%clk 0:02:36]}  Bh5 {[%clk 0:02:12]} 13. c3 {[%clk 0:02:25]}  Kh8 {[%clk 0:02:01]} 14. d4 {[%clk 0:02:24]}  f5 {[%clk 0:01:49]} 15. Be2 {[%clk 0:02:11]}  e4 {[%clk 0:01:46]} 16. Nd2 {[%clk 0:02:02]}  Bxe2 {[%clk 0:01:46]} 17. Qxe2 {[%clk 0:02:02]}  Bg5 {[%clk 0:01:46]} 18. Rad1 {[%clk 0:01:54]}  b5 {[%clk 0:01:45]} 19. Nh3 {[%clk 0:01:47]}  Bh6 {[%clk 0:01:44]} 20. Nf1 {[%clk 0:01:40]}  Ne7 {[%clk 0:01:41]} 21. Qh5 {[%clk 0:01:34]}  Nd5 {[%clk 0:01:36]} 22. Rd2 {[%clk 0:01:22]}  a5 {[%clk 0:01:22]} 23. Rf2 {[%clk 0:01:08]}  Qd7 {[%clk 0:01:15]} 24. Ng5 {[%clk 0:01:00]}  Ra6 {[%clk 0:01:14]} 25. Nxe4 {[%clk 0:00:57]}  Rg6 {[%clk 0:01:11]} 26. Nc5 {[%clk 0:00:56]}  Qe8 {[%clk 0:01:08]} 27. Rxf5 {[%clk 0:00:55]}  Rxf5 {[%clk 0:00:53]} 28. Qxf5 {[%clk 0:00:56]}  Rg5 {[%clk 0:00:47]} 29. Qf3 {[%clk 0:00:53]}  Nf6 {[%clk 0:00:32]} 30. e4 {[%clk 0:00:51]}  Rg6 {[%clk 0:00:29]} 31. e5 {[%clk 0:00:50]}  Ng8 {[%clk 0:00:28]} 32. e6 {[%clk 0:00:44]}  Ne7 {[%clk 0:00:29]} 33. Qf7 {[%clk 0:00:40]}  Qd8 {[%clk 0:00:26]} 34. Nb7 {[%clk 0:00:37]}  Qd5 {[%clk 0:00:16]} 35. Ng3 {[%clk 0:00:25]}  Bg5 {[%clk 0:00:12]} 36. Nc5 {[%clk 0:00:21]}  c6 {[%clk 0:00:10]} 37. Qe8+ {[%clk 0:00:19]}  Ng8 {[%clk 0:00:10]} 38. Qd7 {[%clk 0:00:18]}  Qxd7 {[%clk 0:00:07]} 39. Nxd7 {[%clk 0:00:18]}  Be7 {[%clk 0:00:06]} 40. Ne5 {[%clk 0:00:17]}  Rxe6 {[%clk 0:00:04]} 41. Nf7# {[%clk 0:00:17]} 1-0


[Site "https://www.chess.com"]